fUSD/lending_fUSD_20250120
["ID","MTS","AMOUNT","RATE_DAILY","PERIOD"]
[349713620,1737390639664,-500.0,0.00020273,2]
[349713622,1737390639680,-500.0,0.00020273,2]
[349713624,1737390639690,-500.0,0.00020273,2]
[349713626,1737390639700,-779.49,0.00020273,2]
[349713628,1737390639710,-500.0,0.00020273,2]
[349713630,1737390639720,-288.998349,0.00020273,2]
[349713632,1737390639730,-500.0,0.00020273,2]
[349713634,1737390639739,-39.73297065,0.00020273,2]
[349713636,1737390639752,-320.09861389,0.00020273,2]
[349713639,1737390639764,-201.30841546,0.00020273,2]
[349713641,1737390639774,-863.71,0.00020273,2]
[349713642,1737390639783,-500.0,0.00020273,2]
[349713644,1737390639794,-500.0,0.00020273,2]
[349713647,1737390639805,-500.0,0.00020273,2]
[349713649,1737390639815,-500.0,0.00020273,2]
[349713651,1737390639825,-500.0,0.00020273,2]
[349713653,1737390639835,-500.0,0.00020273,2]
[349713655,1737390639845,-500.0,0.00020273,2]
[349713657,1737390639854,-500.0,0.00020273,2]
[349713659,1737390639864,-500.0,0.00020273,2]
[349713661,1737390639874,-500.0,0.00020273,2]
[349713663,1737390639884,-500.0,0.00020273,2]
[349713665,1737390639894,-500.0,0.00020273,2]
[349713667,1737390639904,-597.82415799,0.00020344,2]
[349713669,1737390639914,-283.03124019,0.00020344,2]
[349713671,1737390639923,-1000.0,0.00020345,2]
[349713673,1737390639934,-500.0,0.00020345,2]
[349713675,1737390639943,-600.0,0.00020356,2]
[349713677,1737390639953,-500.0,0.00020356,2]
[349713679,1737390639963,-547.87,0.00020444,2]
[349713681,1737390639973,-500.0,0.00020444,2]
[349713683,1737390639983,-165.27222889,0.00020444,2]
[349713685,1737390639992,-500.0,0.00020444,2]
[349713687,1737390640002,-500.0,0.00020444,2]
[349713689,1737390640012,-500.0,0.00020444,2]
[349713691,1737390640025,-500.0,0.00020444,2]
[349713693,1737390640035,-500.0,0.00020444,2]
[349713695,1737390640044,-500.0,0.00020444,2]
[349713697,1737390640055,-500.0,0.00020444,2]
[349713700,1737390640065,-537.88,0.00020444,2]
[349713702,1737390640075,-500.0,0.00020444,2]
[349713704,1737390640084,-500.0,0.00020444,2]
[349713706,1737390640093,-150.482952,0.00020444,2]
[349713708,1737390640103,-500.0,0.00020444,2]
[349713710,1737390640113,-500.0,0.00020444,2]
[349713711,1737390640122,-500.0,0.00020444,2]
[349713713,1737390640131,-1082.14,0.00020444,2]
[349713715,1737390640141,-700.18,0.00020444,2]
[349713717,1737390640150,-500.0,0.00020444,2]
[349713719,1737390640159,-500.0,0.00020444,2]
[349713721,1737390640169,-591.05,0.00020444,2]
[349713723,1737390640178,-784.03,0.00020444,2]
[349713725,1737390640187,-561.5,0.00020444,2]
[349713727,1737390640196,-500.0,0.00020444,2]
[349713729,1737390640206,-889.63,0.00020444,2]
[349713731,1737390640215,-500.0,0.00020444,2]
[349713733,1737390640225,-520.61,0.00020444,2]
[349713735,1737390640234,-423.48100547,0.00020444,2]
[349713737,1737390640247,-670.52,0.00020444,2]
[349713740,1737390640262,-51.36899453,0.00020444,2]
[349713742,1737390640271,-500.0,0.00020444,2]
[349713744,1737390640280,-500.0,0.00020444,2]
[349713746,1737390640290,-238.297156,0.00020444,2]
[349713748,1737390640299,-500.0,0.00020444,2]
[349713750,1737390640309,-500.0,0.00020444,2]
[349713752,1737390640319,-552.02,0.00020444,2]
[349713754,1737390640328,-500.0,0.00020444,2]
[349713756,1737390640338,-61.18576377,0.00020444,2]
[349713758,1737390640350,-713.95423623,0.00020444,2]
[349713760,1737390640359,-330.98966377,0.00020444,2]
[349713762,1737390640372,-169.01033623,0.00020444,2]
[349713764,1737390640381,-1471.06,0.00020444,2]
[349713766,1737390640391,-500.0,0.00020444,2]
[349713768,1737390640400,-882.24,0.00020444,2]
[349713770,1737390640409,-566.47,0.00020444,2]
[349713772,1737390640419,-811.81,0.00020444,2]
[349713774,1737390640428,-500.0,0.00020444,2]
[349713776,1737390640437,-541.7,0.00020444,2]
[349713777,1737390640446,-1491.88,0.00020444,2]
[349713779,1737390640455,-500.0,0.00020444,2]
[349713781,1737390640465,-500.0,0.00020536,2]
[349713783,1737390640474,-500.0,0.00020536,2]
[349713785,1737390640483,-500.0,0.00020536,2]
[349713787,1737390640492,-500.0,0.00020536,2]
[349713789,1737390640501,-500.0,0.00020536,2]
[349713791,1737390640511,-500.0,0.00020536,2]
[349713793,1737390640520,-500.0,0.00020536,2]
[349713795,1737390640529,-500.0,0.00020536,2]
[349713797,1737390640538,-500.0,0.00020536,2]
[349713799,1737390640547,-500.0,0.00020536,2]
[349713801,1737390640558,-500.0,0.00020536,2]
[349713803,1737390640567,-500.0,0.00020536,2]
[349713805,1737390640576,-500.0,0.00020536,2]
[349713807,1737390640585,-500.0,0.00020536,2]
[349713809,1737390640594,-500.0,0.00020536,2]
[349713811,1737390640604,-500.0,0.00020536,2]
[349713813,1737390640613,-301.15020377,0.00020536,2]
[349713815,1737390640626,-198.84979623,0.00020536,2]
[349713817,1737390640635,-500.0,0.00020536,2]
[349713819,1737390640644,-289.31164857,0.00020536,2]
[349713821,1737390640656,-210.68835143,0.00020536,2]
[349713823,1737390640665,-500.0,0.00020536,2]
[349713825,1737390640674,-500.0,0.00020536,2]
[349713827,1737390640683,-500.0,0.00020536,2]
[349713829,1737390640693,-500.0,0.00020536,2]
[349713831,1737390640702,-500.0,0.00020536,2]
[349713833,1737390640711,-500.0,0.00020536,2]
[349713835,1737390640721,-556.12771826,0.00020536,2]
[349713837,1737390640730,-544.32,0.00020536,2]
[349713839,1737390640739,-500.0,0.00020536,2]
[349713841,1737390640749,-571.49,0.00020536,2]
[349713842,1737390640758,-500.0,0.00020536,2]
[349713844,1737390640767,-500.0,0.00020536,2]
[349713846,1737390640777,-500.0,0.00020536,2]
[349713848,1737390640787,-500.0,0.00020536,2]
[349713850,1737390640797,-500.0,0.00020536,2]
[349713852,1737390640807,-500.0,0.00020536,2]
[349713854,1737390640818,-503.61,0.00020536,2]
[349713856,1737390640827,-561.67,0.00020536,2]
[349713859,1737390640837,-500.0,0.00020536,2]
[349713861,1737390640846,-500.0,0.00020536,2]
[349713862,1737390640855,-500.0,0.00020536,2]
[349713864,1737390640865,-500.0,0.00020536,2]
[349713866,1737390640874,-500.0,0.00020536,2]
[349713868,1737390640884,-500.0,0.00020536,2]
[349713870,1737390640893,-729.83,0.00020536,2]
[349713872,1737390640903,-500.0,0.00020536,2]
[349713874,1737390640913,-500.0,0.00020536,2]
[349713876,1737390640923,-500.0,0.00020536,2]
[349713878,1737390640932,-500.0,0.00020536,2]
[349713880,1737390640941,-500.0,0.00020536,2]
[349713882,1737390640951,-500.0,0.00020536,2]
[349713884,1737390640959,-500.0,0.00020536,2]
[349713886,1737390640968,-500.0,0.00020536,2]
[349713888,1737390640978,-500.0,0.00020536,2]
[349713890,1737390640987,-500.0,0.00020536,2]
[349713892,1737390640996,-637.24090478,0.00020536,2]
[349713894,1737390641005,-503.0604028,0.00020536,2]
[349713896,1737390641017,-500.0,0.00020536,2]
[349713898,1737390641027,-500.0,0.00020536,2]
[349713900,1737390641037,-504.5504283,0.00020536,2]
[349713902,1737390641046,-500.0,0.00020536,2]
[349713904,1737390641058,-500.0,0.00020536,2]
[349713906,1737390641067,-508.9210252,0.00020536,2]
[349713909,1737390641077,-500.0,0.00020536,2]
[349713910,1737390641086,-500.0,0.00020536,2]
[349713912,1737390641097,-506.99254932,0.00020536,2]
[349713914,1737390641106,-500.0,0.00020536,2]
[349713916,1737390641115,-500.0,0.00020536,2]
[349713918,1737390641124,-510.3102917,0.00020536,2]
[349713920,1737390641133,-500.0,0.00020536,2]
[349713922,1737390641142,-500.0,0.00020536,2]
[349713924,1737390641151,-507.08473861,0.00020536,2]
[349713926,1737390641160,-500.0,0.00020536,2]
[349713928,1737390641169,-500.0,0.00020536,2]
[349713930,1737390641178,-500.0,0.00020536,2]
[349713932,1737390641187,-596.83,0.00020536,2]
[349713934,1737390641196,-544.42843979,0.00020536,2]
[349713936,1737390641205,-500.0,0.00020536,2]
[349713938,1737390641215,-500.0,0.00020536,2]
[349713940,1737390641224,-469.9937219,0.00020536,2]
[349713942,1737390641233,-500.0,0.00020536,2]
[349713944,1737390641242,-804.88,0.00020536,2]
[349713946,1737390641251,-1325.08,0.00020536,2]
[349713948,1737390641260,-500.0,0.00020536,2]
[349713950,1737390641270,-500.0,0.00020536,2]
[349713952,1737390641279,-500.0,0.00020536,2]
[349713954,1737390641289,-500.0,0.00020536,2]
[349713956,1737390641298,-500.0,0.00020536,2]
[349713958,1737390641308,-500.0,0.00020536,2]
[349713960,1737390641317,-500.0,0.00020536,2]
[349713962,1737390641327,-500.0,0.00020536,2]
[349713964,1737390641337,-500.0,0.00020536,2]
[349713966,1737390641346,-500.0,0.00020536,2]
[349713968,1737390641355,-897.59,0.00020536,2]
[349713970,1737390641364,-500.0,0.00020536,2]
[349713972,1737390641374,-500.0,0.00020536,2]
[349713974,1737390641383,-500.0,0.00020536,2]
[349713976,1737390641392,-500.0,0.00020536,2]
[349713978,1737390641401,-500.0,0.00020536,2]
[349713980,1737390641409,-500.0,0.00020536,2]
[349713982,1737390641419,-500.0,0.00020536,2]
[349713984,1737390641428,-500.0,0.00020536,2]
[349713986,1737390641437,-500.0,0.00020536,2]
[349713988,1737390641446,-500.0,0.00020536,2]
[349713990,1737390641455,-874.17,0.00020536,2]
[349713992,1737390641464,-500.0,0.00020536,2]
[349713994,1737390641473,-500.0,0.00020536,2]
[349713996,1737390641483,-500.0,0.00020536,2]
[349713998,1737390641492,-500.0,0.00020536,2]
[349714000,1737390641502,-1000.0,0.00020536,2]
[349714002,1737390641511,-850.45,0.00020536,2]
[349714004,1737390641519,-500.0,0.00020536,2]
[349714006,1737390641529,-500.0,0.00020537,2]
[349714008,1737390641537,-407.45,0.00020537,2]
[349714010,1737390641546,-500.0,0.00020537,2]
[349714012,1737390641556,-500.0,0.00020537,2]
[349714014,1737390641564,-474.46,0.00020537,2]
[349714016,1737390641573,-500.0,0.00020537,2]
[349714018,1737390641582,-500.0,0.00020537,2]
[349714020,1737390641591,-500.0,0.00020537,2]
[349714022,1737390641601,-500.0,0.00020537,2]
[349714024,1737390641610,-500.0,0.00020537,2]
[349714026,1737390641619,-500.0,0.00020537,2]
[349714028,1737390641629,-500.0,0.00020537,2]
[349714030,1737390641638,-500.0,0.00020537,2]
[349714031,1737390641647,-500.0,0.00020537,2]
[349714033,1737390641657,-500.0,0.00020547,2]
[349714035,1737390641666,-500.0,0.00020547,2]
[349714038,1737390641676,-500.0,0.00020547,2]
[349714040,1737390641685,-500.0,0.00020547,2]
[349714042,1737390641695,-613.47,0.00020547,2]
[349714044,1737390641705,-508.88,0.00020547,2]
[349714046,1737390641714,-794.31,0.00020547,2]
[349714048,1737390641724,-500.0,0.00020547,2]
[349714050,1737390641734,-500.0,0.00020547,2]
[349714052,1737390641744,-741.64,0.00020547,2]
[349714053,1737390641753,-500.0,0.00020547,2]
[349714054,1737390641762,-488.19,0.00020547,2]
[349714055,1737390641771,-500.0,0.00020547,2]
[349714056,1737390641780,-895.91,0.00020547,2]
[349714057,1737390641790,-1169.56,0.00020547,2]
[349714058,1737390641800,-418.88,0.00020547,2]
[349714059,1737390641812,-248.36,0.00020547,2]
[349714060,1737390641821,-500.0,0.00020547,2]
[349714061,1737390641832,-1039.98,0.00020547,2]
[349714062,1737390641844,-500.0,0.00020547,2]
[349714063,1737390641854,-500.0,0.00020547,2]
[349714065,1737390641864,-500.0,0.00020547,2]
[349714068,1737390641874,-779.49,0.00020547,2]
[349714070,1737390641895,-242.27,0.00020547,2]
[349714072,1737390641906,-288.998349,0.00020547,2]
[349714074,1737390641917,-500.0,0.00020547,2]
[349714076,1737390641927,-561.14,0.00020547,2]
[349714079,1737390641937,-863.71,0.00020547,2]
[349714080,1737390641948,-422.56226958,0.00020547,2]
[349714082,1737390641958,-500.0,0.00020547,2]
[349714085,1737390641969,-500.0,0.00020547,2]
[349714087,1737390641979,-273.06,0.00020547,2]
[349714089,1737390641989,-500.0,0.00020547,2]
[349714091,1737390641998,-500.0,0.00020547,2]
[349714093,1737390642009,-597.82415799,0.00020567,2]
[349714095,1737390642021,-283.03124019,0.00020567,2]
[349714097,1737390642030,-500.0,0.00020718,2]
[349714099,1737390642040,-500.0,0.00020718,2]
[349714101,1737390642050,-500.0,0.00020718,2]
[349714103,1737390642065,-500.0,0.00020718,2]
[349714105,1737390642074,-500.0,0.00020718,2]
[349714107,1737390642084,-380.78161619,0.00020718,2]
[349714108,1737390642095,-500.0,0.00020718,2]
[349714111,1737390642105,-537.88,0.00020718,2]
[349714113,1737390642115,-500.0,0.00020718,2]
[349714115,1737390642124,-500.0,0.00020718,2]
[349714117,1737390642133,-500.0,0.00020718,2]
[349714119,1737390642143,-362.60456897,0.00020718,2]
[349714121,1737390642152,-1082.14,0.00020718,2]
[349714123,1737390642162,-700.18,0.00020718,2]
[349714125,1737390642172,-500.0,0.00020718,2]
[349714127,1737390642181,-500.0,0.00020718,2]
[349714129,1737390642191,-591.05,0.00020718,2]
[349714131,1737390642200,-784.03,0.00020718,2]
[349714133,1737390642210,-561.5,0.00020718,2]
[349714135,1737390642221,-500.0,0.00020718,2]
[349714137,1737390642230,-889.63,0.00020718,2]
[349714139,1737390642240,-500.0,0.00020718,2]
[349714141,1737390642249,-520.61,0.00020718,2]
[349714143,1737390642260,-1145.37,0.00020718,2]
[349714145,1737390642269,-500.0,0.00020718,2]
[349714147,1737390642278,-500.0,0.00020718,2]
[349714149,1737390642287,-186.545732,0.00020718,2]
[349714151,1737390642297,-500.0,0.00020718,2]
[349714153,1737390642308,-500.0,0.00020718,2]
[349714155,1737390642318,-715.2330759,0.00020718,2]
[349714157,1737390642327,-552.02,0.00020718,2]
[349714159,1737390642337,-500.0,0.00020718,2]
[349714161,1737390642346,-775.14,0.00020718,2]
[349714163,1737390642356,-500.0,0.00020718,2]
[349714165,1737390642366,-1471.06,0.00020718,2]
[349714167,1737390642375,-500.0,0.00020718,2]
[349714169,1737390642385,-882.24,0.00020718,2]
[349714171,1737390642394,-566.47,0.00020718,2]
[349714173,1737390642408,-811.81,0.00020718,2]
[349714175,1737390642417,-500.0,0.00020718,2]
[349714177,1737390642427,-541.7,0.00020718,2]
[349714180,1737390642438,-1491.88,0.00020718,2]
[349714182,1737390642448,-500.0,0.00020718,2]
[349714184,1737390642458,-597.82415799,0.00020789,2]
[349714186,1737390642468,-283.03124019,0.00020789,2]
[349714188,1737390642477,-240.78,0.0002081,2]
[349714190,1737390642487,-500.0,0.0002081,2]
[349714192,1737390642498,-500.0,0.0002081,2]
[349714194,1737390642508,-500.0,0.0002081,2]
[349714196,1737390642519,-500.0,0.0002081,2]
[349714198,1737390642528,-500.0,0.0002081,2]
[349714200,1737390642538,-500.0,0.0002081,2]
[349714202,1737390642550,-500.0,0.0002081,2]
[349714204,1737390642564,-500.0,0.0002081,2]
[349714206,1737390642576,-500.0,0.0002081,2]
[349714208,1737390642586,-500.0,0.0002081,2]
[349714210,1737390642595,-500.0,0.0002081,2]
[349714212,1737390642606,-160.28,0.0002081,2]
[349714214,1737390642615,-271.84,0.0002081,2]
[349714216,1737390642625,-500.0,0.0002081,2]
[349714218,1737390642634,-374.79,0.0002081,2]
[349714220,1737390642643,-500.0,0.0002081,2]
[349714222,1737390642653,-544.32,0.0002081,2]
[349714224,1737390642662,-571.49,0.0002081,2]
[349714226,1737390642671,-500.0,0.0002081,2]
[349714228,1737390642680,-503.61,0.0002081,2]
[349714230,1737390642690,-432.67064952,0.0002081,2]
[349714232,1737390642700,-500.0,0.0002081,2]
[349714234,1737390642710,-500.0,0.0002081,2]
[349714236,1737390642720,-629.96,0.0002081,2]
[349714238,1737390642730,-729.83,0.0002081,2]
[349714240,1737390642739,-252.83,0.0002081,2]
[349714241,1737390642749,-492.51043245,0.0002081,2]
[349714242,1737390642760,-500.0,0.0002081,2]
[349714243,1737390642769,-500.0,0.0002081,2]
[349714245,1737390642778,-500.0,0.0002081,2]
[349714247,1737390642789,-500.0,0.0002081,2]
[349714248,1737390642802,-500.0,0.0002081,2]
[349714249,1737390642815,-500.0,0.0002081,2]
[349714250,1737390642825,-500.0,0.0002081,2]
[349714252,1737390642836,-500.0,0.0002081,2]
[349714254,1737390642846,-500.0,0.0002081,2]
[349714257,1737390642855,-500.0,0.0002081,2]
[349714298,1737390643047,-500.0,0.0002081,2]
[349714301,1737390643066,-500.0,0.0002081,2]
[349714304,1737390643076,-500.0,0.0002081,2]
[349714306,1737390643086,-500.0,0.0002081,2]
[349714308,1737390643097,-467.71387465,0.0002081,2]
[349714310,1737390643107,-500.0,0.0002081,2]
[349714312,1737390643116,-582.48113179,0.0002081,2]
[349714314,1737390643127,-500.0,0.0002081,2]
[349714316,1737390643136,-500.0,0.0002081,2]
[349714318,1737390643145,-804.88,0.0002081,2]
[349714320,1737390643154,-1325.08,0.0002081,2]
[349714322,1737390643165,-500.0,0.0002081,2]
[349714324,1737390643174,-500.0,0.0002081,2]
[349714326,1737390643184,-500.0,0.0002081,2]
[349714328,1737390643194,-500.0,0.0002081,2]
[349714330,1737390643203,-500.0,0.0002081,2]
[349714332,1737390643213,-500.0,0.0002081,2]
[349714335,1737390643227,-500.0,0.0002081,2]
[349714337,1737390643236,-500.0,0.0002081,2]
[349714339,1737390643246,-897.59,0.0002081,2]
[349714341,1737390643256,-500.0,0.0002081,2]
[349714343,1737390643265,-500.0,0.0002081,2]
[349714345,1737390643274,-500.0,0.0002081,2]
[349714347,1737390643284,-500.0,0.0002081,2]
[349714349,1737390643294,-500.0,0.0002081,2]
[349714351,1737390643303,-218.37623594,0.0002081,2]
[349714353,1737390643317,-500.0,0.0002081,2]
[349714355,1737390643326,-500.0,0.0002081,2]
[349714357,1737390643335,-874.17,0.0002081,2]
[349714359,1737390643344,-500.0,0.0002081,2]
[349714361,1737390643354,-500.0,0.0002081,2]
[349714363,1737390643363,-1000.0,0.0002081,2]
[349714365,1737390643372,-850.45,0.0002081,2]
[349714367,1737390643381,-500.0,0.0002081,2]
[349714369,1737390643391,-218.39313152,0.00020811,2]
[349714371,1737390643400,-214.91,0.00020811,2]
[349714373,1737390643410,-423.48,0.00020811,2]
[349714375,1737390643419,-500.0,0.00020811,2]
[349714377,1737390643428,-500.0,0.00020811,2]
[349714379,1737390643438,-500.0,0.00020811,2]
[349714381,1737390643447,-500.0,0.00020811,2]
[349714383,1737390643457,-500.0,0.00020811,2]
[349714385,1737390643466,-500.0,0.00020811,2]
[349714387,1737390643476,-500.0,0.00020811,2]
[349714389,1737390643485,-500.0,0.00020818,2]
[349714391,1737390643494,-500.0,0.00020818,2]
[349714393,1737390643504,-500.0,0.00020818,2]
[349714395,1737390643513,-500.0,0.00020818,2]
[349714397,1737390643523,-500.0,0.00020818,2]
[349714399,1737390643532,-500.0,0.00020818,2]
[349714401,1737390643541,-500.0,0.00020818,2]
[349714403,1737390643551,-626.19,0.00020818,2]
[349714405,1737390643562,-500.0,0.00020818,2]
[349714407,1737390643572,-500.0,0.00020818,2]
[349714409,1737390643582,-500.0,0.00020818,2]
[349714411,1737390643592,-500.0,0.00020818,2]
[349714413,1737390643602,-500.0,0.00020818,2]
[349714415,1737390643612,-500.0,0.00020818,2]
[349714417,1737390643623,-543.89326692,0.00020818,2]
[349714419,1737390643632,-500.0,0.00020818,2]
[349714421,1737390643642,-500.0,0.00020818,2]
[349714423,1737390643651,-500.0,0.00020818,2]
[349714425,1737390643662,-500.0,0.00020818,2]
[349714427,1737390643672,-200.0,0.00020818,2]
[349714429,1737390643681,-500.0,0.00020818,2]
[349714431,1737390643692,-500.0,0.00020818,2]
[349714433,1737390643702,-500.0,0.00020818,2]
[349714435,1737390643711,-500.0,0.00020818,2]
[349714437,1737390643721,-500.0,0.00020818,2]
[349714439,1737390643731,-500.0,0.00020818,2]
[349714441,1737390643741,-438.34843056,0.00020818,2]
[349714443,1737390643751,-500.0,0.00020818,2]
[349714445,1737390643760,-500.0,0.00020818,2]
[349714447,1737390643770,-500.0,0.00020818,2]
[349714449,1737390643779,-500.0,0.00020818,2]
[349714451,1737390643790,-500.0,0.00020818,2]
[349714453,1737390643801,-500.0,0.00020818,2]
[349714455,1737390643813,-214.15294467,0.00020818,2]
[349714457,1737390643822,-500.0,0.00020818,2]
[349714459,1737390643832,-500.0,0.00020818,2]
[349714461,1737390643842,-500.0,0.00020818,2]
[349714463,1737390643852,-500.0,0.00020818,2]
[349714465,1737390643861,-500.0,0.00020818,2]
[349714467,1737390643871,-500.0,0.00020818,2]
[349714469,1737390643880,-491.02735954,0.00020818,2]
[349714471,1737390643889,-500.0,0.00020818,2]
[349714474,1737390643908,-500.0,0.00020818,2]
[349714476,1737390643920,-500.0,0.00020818,2]
[349714478,1737390643930,-500.0,0.00020818,2]
[349714480,1737390643940,-500.0,0.00020818,2]
[349714482,1737390643949,-500.0,0.00020818,2]
[349714484,1737390643959,-500.0,0.00020818,2]
[349714486,1737390643969,-500.70366134,0.00020818,2]
[349714488,1737390643979,-500.0,0.00020818,2]
[349714490,1737390643989,-500.0,0.00020818,2]
[349714492,1737390643999,-500.0,0.00020818,2]
[349714495,1737390644009,-500.0,0.00020818,2]
[349714497,1737390644021,-500.0,0.00020818,2]
[349714499,1737390644031,-436.52836459,0.00020818,2]
[349714501,1737390644041,-500.0,0.00020818,2]
[349714503,1737390644051,-500.0,0.00020818,2]
[349714505,1737390644063,-500.0,0.00020818,2]
[349714507,1737390644073,-500.0,0.00020818,2]
[349714509,1737390644082,-501.44493825,0.00020818,2]
[349714511,1737390644092,-500.0,0.00020818,2]
[349714513,1737390644102,-503.63133791,0.00020818,2]
[349714515,1737390644111,-500.0,0.00020818,2]
[349714517,1737390644121,-500.0,0.00020818,2]
[349714519,1737390644130,-222.30294197,0.00020818,2]
[349714521,1737390644140,-500.0,0.00020818,2]
[349714523,1737390644149,-500.0,0.00020818,2]
[349714525,1737390644158,-500.0,0.00020818,2]
[349714527,1737390644167,-500.0,0.00020818,2]
[349714529,1737390644177,-500.0,0.00020818,2]
[349714531,1737390644186,-500.0,0.00020818,2]
[349714533,1737390644196,-500.0,0.00020818,2]
[349714535,1737390644205,-545.56469862,0.00020818,2]
[349714537,1737390644214,-500.0,0.00020818,2]
[349714539,1737390644224,-500.0,0.00020818,2]
[349714541,1737390644234,-500.0,0.00020818,2]
[349714543,1737390644244,-500.0,0.00020818,2]
[349714545,1737390644253,-500.0,0.00020818,2]
[349714547,1737390644263,-500.0,0.00020818,2]
[349714549,1737390644272,-500.0,0.00020818,7]
[349714551,1737390644282,-500.0,0.00020818,2]
[349714553,1737390644292,-500.0,0.00020818,2]
[349714555,1737390644302,-500.0,0.00020818,2]
[349714557,1737390644313,-500.0,0.00020818,2]
[349714559,1737390644322,-500.0,0.00020818,2]
[349714561,1737390644331,-500.0,0.00020818,2]
[349714563,1737390644340,-500.0,0.00020818,2]
[349714565,1737390644350,-500.0,0.00020818,2]
[349714566,1737390644359,-500.0,0.00020818,2]
[349714567,1737390644368,-500.0,0.00020818,2]
[349714568,1737390644377,-500.0,0.00020818,2]
[349714569,1737390644387,-188.75308243,0.00020818,2]
[349714570,1737390644397,-500.0,0.00020818,2]
[349714571,1737390644406,-1003.23,0.00020818,2]
[349714572,1737390644415,-500.0,0.00020818,2]
[349714573,1737390644425,-500.0,0.00020818,2]
[349714574,1737390644435,-500.0,0.00020818,2]
[349714575,1737390644445,-500.0,0.00020818,2]
[349714576,1737390644455,-500.0,0.00020818,2]
[349714578,1737390644464,-637.63,0.00020818,2]
[349714580,1737390644474,-500.0,0.00020818,2]
[349714582,1737390644485,-500.0,0.00020818,2]
[349714584,1737390644495,-500.0,0.00020818,2]
[349714586,1737390644504,-500.0,0.00020818,2]
[349714588,1737390644514,-500.0,0.00020818,2]
[349714590,1737390644523,-500.0,0.00020818,2]
[349714592,1737390644533,-500.0,0.00020818,2]
[349714594,1737390644542,-500.0,0.00020818,2]
[349714596,1737390644551,-500.0,0.00020818,2]
[349714598,1737390644563,-500.0,0.00020818,2]
[349714600,1737390644572,-500.0,0.00020818,2]
[349714602,1737390644582,-500.0,0.00020818,2]
[349714604,1737390644591,-500.0,0.00020818,2]
[349714607,1737390644601,-500.0,0.00020818,2]
[349714609,1737390644611,-500.0,0.00020818,2]
[349714611,1737390644621,-500.0,0.00020818,2]
[349714613,1737390644630,-500.0,0.00020818,2]
[349714615,1737390644639,-500.0,0.00020818,2]
[349714617,1737390644648,-500.0,0.00020818,2]
[349714619,1737390644658,-500.0,0.00020818,2]
[349714621,1737390644667,-500.0,0.00020818,2]
[349714623,1737390644676,-500.0,0.00020818,2]
[349714625,1737390644687,-500.0,0.00020818,2]
[349714627,1737390644696,-500.0,0.00020818,2]
[349714629,1737390644707,-500.0,0.00020818,2]
[349714631,1737390644716,-500.0,0.00020818,2]
[349714633,1737390644726,-500.0,0.00020818,2]
[349714635,1737390644735,-322.72570533,0.00020818,2]
[349714637,1737390644744,-500.0,0.00020818,2]
[349714639,1737390644758,-500.0,0.00020818,2]